[Event "Titled Tuesday Blitz January 17 Late 2023"]
[White "Janaszak, Dawid"]
[Black "Cardoso Cardoso, Jose Gabriel"]
[WhiteFideId "1119206"]
[BlackFideId "4430492"]
[WhiteElo "2316"]
[BlackElo "2492"]
[Result "0-1"]
[Round "11"]
[TimeControl "180+2"]
[Date "2023.01.17"]
[WhiteClock "0:00:01"]
[BlackClock "0:00:04"]

1. e4 {[%clk 0:03:00]}  c5 {[%clk 0:02:52]} 2. Nc3 {[%clk 0:03:00]}  g6 {[%clk 0:02:50]} 3. Bc4 {[%clk 0:02:59]}  Nc6 {[%clk 0:02:48]} 4. h4 {[%clk 0:02:58]}  h5 {[%clk 0:02:43]} 5. Nf3 {[%clk 0:02:55]}  Bg7 {[%clk 0:02:42]} 6. d3 {[%clk 0:02:47]}  d6 {[%clk 0:02:41]} 7. Ng5 {[%clk 0:02:45]}  Nh6 {[%clk 0:02:35]} 8. f3 {[%clk 0:02:33]}  Rb8 {[%clk 0:02:30]} 9. a3 {[%clk 0:02:32]}  b5 {[%clk 0:02:26]} 10. Bd5 {[%clk 0:02:19]}  Bd7 {[%clk 0:02:13]} 11. O-O {[%clk 0:01:58]}  e6 {[%clk 0:01:48]} 12. Ba2 {[%clk 0:01:55]}  a5 {[%clk 0:01:39]} 13. Ne2 {[%clk 0:01:55]}  Qe7 {[%clk 0:01:33]} 14. c3 {[%clk 0:01:50]}  b4 {[%clk 0:01:32]} 15. axb4 {[%clk 0:01:47]}  axb4 {[%clk 0:01:30]} 16. Be3 {[%clk 0:01:37]}  bxc3 {[%clk 0:01:25]} 17. bxc3 {[%clk 0:01:37]}  Rb2 {[%clk 0:01:24]} 18. Bc1 {[%clk 0:01:12]}  Rb8 {[%clk 0:00:15]} 19. d4 {[%clk 0:01:08]}  cxd4 {[%clk 0:00:14]} 20. cxd4 {[%clk 0:01:09]}  O-O {[%clk 0:00:13]} 21. Be3 {[%clk 0:01:09]}  Nb4 {[%clk 0:00:12]} 22. Bb1 {[%clk 0:01:08]}  Bb5 {[%clk 0:00:13]} 23. Qd2 {[%clk 0:01:05]}  Nc6 {[%clk 0:00:12]} 24. Rd1 {[%clk 0:00:58]}  e5 {[%clk 0:00:11]} 25. d5 {[%clk 0:00:38]}  Bxe2 {[%clk 0:00:12]} 26. Qxe2 {[%clk 0:00:37]}  Nd4 {[%clk 0:00:13]} 27. Qf2 {[%clk 0:00:34]}  Rb3 {[%clk 0:00:12]} 28. Ba2 {[%clk 0:00:32]}  Ra3 {[%clk 0:00:12]} 29. Bc4 {[%clk 0:00:31]}  Rxe3 {[%clk 0:00:12]} 30. Qxe3 {[%clk 0:00:30]}  Nc2 {[%clk 0:00:13]} 31. Qd2 {[%clk 0:00:29]}  Nxa1 {[%clk 0:00:14]} 32. Rxa1 {[%clk 0:00:30]}  Qc7 {[%clk 0:00:14]} 33. Bf1 {[%clk 0:00:28]}  Rb8 {[%clk 0:00:14]} 34. Rc1 {[%clk 0:00:26]}  Qb6+ {[%clk 0:00:14]} 35. Kh2 {[%clk 0:00:24]}  Bf6 {[%clk 0:00:14]} 36. Rc6 {[%clk 0:00:24]}  Qd8 {[%clk 0:00:11]} 37. Qc1 {[%clk 0:00:24]}  Kg7 {[%clk 0:00:10]} 38. Rc7 {[%clk 0:00:23]}  Bxg5 {[%clk 0:00:06]} 39. Qxg5 {[%clk 0:00:21]}  Ng8 {[%clk 0:00:03]} 40. Qc1 {[%clk 0:00:18]}  Nf6 {[%clk 0:00:02]} 41. Qc6 {[%clk 0:00:18]}  Ne8 {[%clk 0:00:02]} 42. Ra7 {[%clk 0:00:17]}  Qxh4+ {[%clk 0:00:03]} 43. Kg1 {[%clk 0:00:16]}  Qd8 {[%clk 0:00:02]} 44. Rd7 {[%clk 0:00:16]}  Qb6+ {[%clk 0:00:03]} 45. Qxb6 {[%clk 0:00:16]}  Rxb6 {[%clk 0:00:04]} 46. Rd8 {[%clk 0:00:16]}  Nf6 {[%clk 0:00:03]} 47. Bc4 {[%clk 0:00:15]}  g5 {[%clk 0:00:02]} 48. Kf2 {[%clk 0:00:15]}  h4 {[%clk 0:00:02]} 49. Kg1 {[%clk 0:00:15]}  Nh5 {[%clk 0:00:02]} 50. Rc8 {[%clk 0:00:12]}  Nf4 {[%clk 0:00:02]} 51. Rc6 {[%clk 0:00:11]}  Rb2 {[%clk 0:00:02]} 52. Bf1 {[%clk 0:00:10]}  Nh5 {[%clk 0:00:02]} 53. Rxd6 {[%clk 0:00:09]}  Ng3 {[%clk 0:00:03]} 54. Bd3 {[%clk 0:00:10]}  Rd2 {[%clk 0:00:03]} 55. Bc4 {[%clk 0:00:09]}  Rd1+ {[%clk 0:00:03]} 56. Kf2 {[%clk 0:00:09]}  Rc1 {[%clk 0:00:04]} 57. Bd3 {[%clk 0:00:09]}  Rd1 {[%clk 0:00:04]} 58. Bc4 {[%clk 0:00:10]}  Rd2+ {[%clk 0:00:04]} 59. Ke1 {[%clk 0:00:09]}  Rxg2 {[%clk 0:00:05]} 60. Rc6 {[%clk 0:00:09]}  h3 {[%clk 0:00:05]} 61. Bf1 {[%clk 0:00:09]}  Rg1 {[%clk 0:00:05]} 62. Kf2 {[%clk 0:00:10]}  h2 {[%clk 0:00:05]} 63. Bg2 {[%clk 0:00:10]}  Nh5 {[%clk 0:00:04]} 64. d6 {[%clk 0:00:09]}  Nf4 {[%clk 0:00:05]} 65. Bh1 {[%clk 0:00:01]}  Rxh1 {[%clk 0:00:05]} 66. d7 {[%clk 0:00:01]}  Rg1 {[%clk 0:00:04]} 0-1


[Site "https://www.chess.com"]

[Event "Titled Tuesday Blitz January 17 Late 2023"]
[White "Tanenbaum, Zachary"]
[Black "Cori T., Deysi"]
[WhiteFideId "2060850"]
[BlackFideId "3801934"]
[WhiteElo "2261"]
[BlackElo "2362"]
[Result "0-1"]
[Round "11"]
[TimeControl "180+2"]
[Date "2023.01.17"]
[WhiteClock "0:00:02"]
[BlackClock "0:00:04"]

1. e4 {[%clk 0:03:00]}  g6 {[%clk 0:02:59]} 2. d4 {[%clk 0:03:00]}  Bg7 {[%clk 0:02:59]} 3. Nc3 {[%clk 0:03:01]}  d6 {[%clk 0:03:00]} 4. Bg5 {[%clk 0:03:01]}  c6 {[%clk 0:03:00]} 5. Nf3 {[%clk 0:02:59]}  b5 {[%clk 0:02:59]} 6. Bd3 {[%clk 0:02:58]}  Qc7 {[%clk 0:02:58]} 7. Qd2 {[%clk 0:02:54]}  Bg4 {[%clk 0:02:57]} 8. O-O-O {[%clk 0:02:32]}  Nd7 {[%clk 0:02:42]} 9. Rhe1 {[%clk 0:02:18]}  Bxf3 {[%clk 0:02:39]} 10. gxf3 {[%clk 0:02:18]}  Bxd4 {[%clk 0:02:40]} 11. Bxb5 {[%clk 0:02:15]}  Bg7 {[%clk 0:02:31]} 12. Ba4 {[%clk 0:02:07]}  Rb8 {[%clk 0:02:28]} 13. f4 {[%clk 0:02:04]}  h6 {[%clk 0:02:23]} 14. Bh4 {[%clk 0:02:03]}  g5 {[%clk 0:02:22]} 15. Bg3 {[%clk 0:01:51]}  Qa5 {[%clk 0:01:42]} 16. e5 {[%clk 0:01:40]}  gxf4 {[%clk 0:01:31]} 17. Bxf4 {[%clk 0:00:23]}  Bxe5 {[%clk 0:01:29]} 18. Bxe5 {[%clk 0:00:22]}  Nxe5 {[%clk 0:01:28]} 19. f4 {[%clk 0:00:22]}  Qb4 {[%clk 0:00:55]} 20. Bb3 {[%clk 0:00:10]}  Nf3 {[%clk 0:00:53]} 21. Qe3 {[%clk 0:00:07]}  Nxe1 {[%clk 0:00:53]} 22. Rxe1 {[%clk 0:00:08]}  d5 {[%clk 0:00:50]} 23. Qe5 {[%clk 0:00:08]}  Rh7 {[%clk 0:00:46]} 24. Rg1 {[%clk 0:00:08]}  Kf8 {[%clk 0:00:45]} 25. f5 {[%clk 0:00:06]}  Qd6 {[%clk 0:00:42]} 26. Qe3 {[%clk 0:00:05]}  d4 {[%clk 0:00:36]} 27. Qd3 {[%clk 0:00:04]}  dxc3 {[%clk 0:00:34]} 28. Qxc3 {[%clk 0:00:05]}  Nf6 {[%clk 0:00:31]} 29. Rd1 {[%clk 0:00:05]}  Qf4+ {[%clk 0:00:31]} 30. Kb1 {[%clk 0:00:05]}  Rg7 {[%clk 0:00:30]} 31. a3 {[%clk 0:00:05]}  Qxf5 {[%clk 0:00:29]} 32. Qxc6 {[%clk 0:00:04]}  Qe5 {[%clk 0:00:20]} 33. Qc4 {[%clk 0:00:04]}  Qxh2 {[%clk 0:00:15]} 34. Ka2 {[%clk 0:00:04]}  Qe5 {[%clk 0:00:15]} 35. Rg1 {[%clk 0:00:03]}  e6 {[%clk 0:00:13]} 36. Rf1 {[%clk 0:00:03]}  Nd5 {[%clk 0:00:12]} 37. Rd1 {[%clk 0:00:03]}  a5 {[%clk 0:00:11]} 38. Qc5+ {[%clk 0:00:03]}  Kg8 {[%clk 0:00:11]} 39. Qxa5 {[%clk 0:00:04]}  Rg3 {[%clk 0:00:08]} 40. Qa4 {[%clk 0:00:04]}  Rgxb3 {[%clk 0:00:06]} 41. cxb3 {[%clk 0:00:04]}  Qe2 {[%clk 0:00:07]} 42. Rc1 {[%clk 0:00:04]}  Qd2 {[%clk 0:00:06]} 43. Rg1+ {[%clk 0:00:04]}  Kf8 {[%clk 0:00:06]} 44. Qc4 {[%clk 0:00:05]}  Qe3 {[%clk 0:00:04]} 45. Qf1 {[%clk 0:00:03]}  Qxb3+ {[%clk 0:00:04]} 46. Kb1 {[%clk 0:00:02]}  Qxb2# {[%clk 0:00:04]} 0-1


[Site "https://www.chess.com"]

[Event "Titled Tuesday Blitz January 17 Late 2023"]
[White "Leitao, Rafael"]
[Black "Rodrigues, Tiago Pereira"]
[WhiteFideId "2101246"]
[BlackFideId "2101203"]
[WhiteElo "2592"]
[BlackElo "2155"]
[Result "1/2-1/2"]
[Round "11"]
[TimeControl "180+2"]
[Date "2023.01.17"]
[WhiteClock "0:00:11"]
[BlackClock "0:00:13"]

1. c4 {[%clk 0:03:00]}  Nf6 {[%clk 0:02:55]} 2. Nc3 {[%clk 0:02:59]}  d6 {[%clk 0:02:54]} 3. e4 {[%clk 0:02:58]}  g6 {[%clk 0:02:54]} 4. d3 {[%clk 0:02:54]}  c5 {[%clk 0:02:53]} 5. g3 {[%clk 0:02:54]}  Nc6 {[%clk 0:02:54]} 6. Bg2 {[%clk 0:02:55]}  Bg7 {[%clk 0:02:54]} 7. Nge2 {[%clk 0:02:56]}  O-O {[%clk 0:02:54]} 8. O-O {[%clk 0:02:56]}  Ne8 {[%clk 0:02:54]} 9. Be3 {[%clk 0:02:55]}  Nc7 {[%clk 0:02:49]} 10. d4 {[%clk 0:02:55]}  cxd4 {[%clk 0:02:49]} 11. Nxd4 {[%clk 0:02:55]}  Bd7 {[%clk 0:02:48]} 12. Rc1 {[%clk 0:02:51]}  Ne6 {[%clk 0:02:32]} 13. Nde2 {[%clk 0:02:49]}  Nc5 {[%clk 0:02:22]} 14. b3 {[%clk 0:02:43]}  Rc8 {[%clk 0:02:13]} 15. Qd2 {[%clk 0:02:38]}  a5 {[%clk 0:01:19]} 16. Nd5 {[%clk 0:02:21]}  Ne5 {[%clk 0:01:05]} 17. f4 {[%clk 0:01:59]}  Ng4 {[%clk 0:01:00]} 18. Bd4 {[%clk 0:01:53]}  e5 {[%clk 0:01:00]} 19. Bc3 {[%clk 0:01:39]}  b6 {[%clk 0:00:51]} 20. f5 {[%clk 0:01:38]}  Bh6 {[%clk 0:00:48]} 21. Qc2 {[%clk 0:01:28]}  Ne3 {[%clk 0:00:40]} 22. Nxe3 {[%clk 0:01:26]}  Bxe3+ {[%clk 0:00:41]} 23. Kh1 {[%clk 0:01:26]}  Bxc1 {[%clk 0:00:30]} 24. Qxc1 {[%clk 0:01:26]}  f6 {[%clk 0:00:23]} 25. g4 {[%clk 0:01:08]}  g5 {[%clk 0:00:23]} 26. h4 {[%clk 0:01:06]}  h6 {[%clk 0:00:24]} 27. Qd2 {[%clk 0:01:06]}  Bc6 {[%clk 0:00:20]} 28. Ng3 {[%clk 0:01:06]}  Be8 {[%clk 0:00:17]} 29. Kg1 {[%clk 0:00:58]}  Bf7 {[%clk 0:00:15]} 30. Kf2 {[%clk 0:00:54]}  Kg7 {[%clk 0:00:13]} 31. Rh1 {[%clk 0:00:52]}  Rh8 {[%clk 0:00:12]} 32. Nf1 {[%clk 0:00:49]}  Qe7 {[%clk 0:00:10]} 33. Ne3 {[%clk 0:00:49]}  Qb7 {[%clk 0:00:07]} 34. Qc2 {[%clk 0:00:35]}  Qc6 {[%clk 0:00:07]} 35. a4 {[%clk 0:00:34]}  Rcd8 {[%clk 0:00:07]} 36. Rh2 {[%clk 0:00:34]}  Rdg8 {[%clk 0:00:07]} 37. Bf3 {[%clk 0:00:33]}  Kf8 {[%clk 0:00:07]} 38. Rh1 {[%clk 0:00:33]}  Kg7 {[%clk 0:00:07]} 39. h5 {[%clk 0:00:33]}  Rd8 {[%clk 0:00:07]} 40. Rd1 {[%clk 0:00:33]}  Rd7 {[%clk 0:00:07]} 41. Bb2 {[%clk 0:00:30]}  Rc8 {[%clk 0:00:07]} 42. Re1 {[%clk 0:00:31]}  Qb7 {[%clk 0:00:07]} 43. Nd1 {[%clk 0:00:31]}  Rdc7 {[%clk 0:00:04]} 44. Nc3 {[%clk 0:00:31]}  Rd7 {[%clk 0:00:03]} 45. Nb5 {[%clk 0:00:31]}  Rcd8 {[%clk 0:00:04]} 46. Rd1 {[%clk 0:00:30]}  Qb8 {[%clk 0:00:04]} 47. Bc1 {[%clk 0:00:29]}  Qb7 {[%clk 0:00:05]} 48. Be3 {[%clk 0:00:30]}  Qc6 {[%clk 0:00:05]} 49. Nc3 {[%clk 0:00:29]}  Na6 {[%clk 0:00:04]} 50. Nb5 {[%clk 0:00:27]}  Nc5 {[%clk 0:00:04]} 51. Rd2 {[%clk 0:00:26]}  Rb8 {[%clk 0:00:04]} 52. Nc3 {[%clk 0:00:22]}  Rbd8 {[%clk 0:00:04]} 53. Qd1 {[%clk 0:00:22]}  Qc8 {[%clk 0:00:04]} 54. Bg2 {[%clk 0:00:19]}  Qb8 {[%clk 0:00:04]} 55. Nb5 {[%clk 0:00:19]}  Kg8 {[%clk 0:00:04]} 56. Bf3 {[%clk 0:00:11]}  Qb7 {[%clk 0:00:05]} 57. Qc2 {[%clk 0:00:10]}  Qc6 {[%clk 0:00:05]} 58. Nc3 {[%clk 0:00:10]}  Na6 {[%clk 0:00:05]} 59. Nb5 {[%clk 0:00:09]}  Nb4 {[%clk 0:00:05]} 60. Qd1 {[%clk 0:00:09]}  Kg7 {[%clk 0:00:06]} 61. Bg2 {[%clk 0:00:09]}  Kh7 {[%clk 0:00:05]} 62. Bf3 {[%clk 0:00:09]}  Kh8 {[%clk 0:00:06]} 63. Bg2 {[%clk 0:00:09]}  Na6 {[%clk 0:00:06]} 64. Bf3 {[%clk 0:00:10]}  Kg8 {[%clk 0:00:07]} 65. Bg2 {[%clk 0:00:10]}  Kg7 {[%clk 0:00:08]} 66. Bf3 {[%clk 0:00:11]}  Bg8 {[%clk 0:00:08]} 67. Bg2 {[%clk 0:00:11]}  Nc5 {[%clk 0:00:09]} 68. Qc2 {[%clk 0:00:11]}  Bf7 {[%clk 0:00:10]} 69. Nc3 {[%clk 0:00:11]}  Qa8 {[%clk 0:00:10]} 70. Bf3 {[%clk 0:00:11]}  Rc7 {[%clk 0:00:10]} 71. Nb5 {[%clk 0:00:11]}  Rc6 {[%clk 0:00:10]} 72. Nc3 {[%clk 0:00:08]}  Qb8 {[%clk 0:00:10]} 73. Nb5 {[%clk 0:00:08]}  Rd7 {[%clk 0:00:10]} 74. Nc3 {[%clk 0:00:07]}  Kf8 {[%clk 0:00:10]} 75. Qd1 {[%clk 0:00:08]}  Ke7 {[%clk 0:00:10]} 76. Bg2 {[%clk 0:00:08]}  Be8 {[%clk 0:00:10]} 77. Bf3 {[%clk 0:00:09]}  Bf7 {[%clk 0:00:11]} 78. Bg2 {[%clk 0:00:09]}  Kf8 {[%clk 0:00:11]} 79. Nb5 {[%clk 0:00:09]}  Kg7 {[%clk 0:00:11]} 80. Nc3 {[%clk 0:00:09]}  Na6 {[%clk 0:00:11]} 81. Bf3 {[%clk 0:00:09]}  Nb4 {[%clk 0:00:11]} 82. Nb5 {[%clk 0:00:09]}  Na6 {[%clk 0:00:11]} 83. Nc3 {[%clk 0:00:09]}  Nc5 {[%clk 0:00:11]} 84. Bg2 {[%clk 0:00:09]}  Rc8 {[%clk 0:00:12]} 85. Bf3 {[%clk 0:00:09]}  Rcd8 {[%clk 0:00:12]} 86. Bg2 {[%clk 0:00:09]}  Bg8 {[%clk 0:00:12]} 87. Bf3 {[%clk 0:00:10]}  Qb7 {[%clk 0:00:12]} 88. Bg2 {[%clk 0:00:10]}  Qa8 {[%clk 0:00:13]} 89. Bf3 {[%clk 0:00:11]} 1/2-1/2


[Site "https://www.chess.com"]

[Event "Titled Tuesday Blitz January 17 Late 2023"]
[White "Vlassov, Nikolai"]
[Black "Al-Tarboush, Ward"]
[WhiteFideId "4103360"]
[BlackFideId "7601450"]
[WhiteElo "2283"]
[BlackElo "2256"]
[Result "1-0"]
[Round "11"]
[TimeControl "180+2"]
[Date "2023.01.17"]
[WhiteClock "0:02:27"]
[BlackClock "0:01:56"]

1. e4 {[%clk 0:03:00]}  c5 {[%clk 0:02:58]} 2. c3 {[%clk 0:03:00]}  Nc6 {[%clk 0:02:57]} 3. d4 {[%clk 0:03:00]}  cxd4 {[%clk 0:02:56]} 4. cxd4 {[%clk 0:02:59]}  d5 {[%clk 0:02:56]} 5. exd5 {[%clk 0:02:58]}  Qxd5 {[%clk 0:02:55]} 6. Nf3 {[%clk 0:02:59]}  e5 {[%clk 0:02:55]} 7. Nc3 {[%clk 0:02:58]}  Bb4 {[%clk 0:02:54]} 8. Be2 {[%clk 0:02:59]}  exd4 {[%clk 0:02:52]} 9. O-O {[%clk 0:02:57]}  Bxc3 {[%clk 0:02:51]} 10. bxc3 {[%clk 0:02:56]}  Nge7 {[%clk 0:02:48]} 11. Nxd4 {[%clk 0:02:56]}  O-O {[%clk 0:02:47]} 12. Bf3 {[%clk 0:02:55]}  Qa5 {[%clk 0:02:45]} 13. Qb3 {[%clk 0:02:45]}  Qb6 {[%clk 0:02:11]} 14. Ba3 {[%clk 0:02:35]}  Nxd4 {[%clk 0:02:06]} 15. cxd4 {[%clk 0:02:34]}  Re8 {[%clk 0:01:57]} 16. Rfe1 {[%clk 0:02:28]}  Be6 {[%clk 0:01:56]} 17. Qxb6 {[%clk 0:02:26]}  axb6 {[%clk 0:01:56]} 18. Bxe7 {[%clk 0:02:26]}  Rxe7 {[%clk 0:01:56]} 19. d5 {[%clk 0:02:27]} 1-0


[Site "https://www.chess.com"]

[Event "Titled Tuesday Blitz January 17 Late 2023"]
[White "Domingo Nunez, Ruben"]
[Black "Martinez Reyes, Pedro Ramon"]
[WhiteFideId "22245570"]
[BlackFideId "3901807"]
[WhiteElo "2416"]
[BlackElo "2376"]
[Result "0-1"]
[Round "11"]
[TimeControl "180+2"]
[Date "2023.01.17"]
[WhiteClock "0:00:04"]
[BlackClock "0:00:16"]

1. e4 {[%clk 0:03:00]}  e6 {[%clk 0:02:59]} 2. Nf3 {[%clk 0:03:01]}  d5 {[%clk 0:02:59]} 3. Nc3 {[%clk 0:03:02]}  Nf6 {[%clk 0:02:59]} 4. e5 {[%clk 0:03:02]}  Ne4 {[%clk 0:02:59]} 5. Ne2 {[%clk 0:03:03]}  h6 {[%clk 0:02:52]} 6. h4 {[%clk 0:03:02]}  Be7 {[%clk 0:02:49]} 7. d3 {[%clk 0:03:02]}  Nc5 {[%clk 0:02:49]} 8. Ng3 {[%clk 0:02:59]}  a5 {[%clk 0:02:44]} 9. c3 {[%clk 0:02:46]}  b6 {[%clk 0:02:41]} 10. d4 {[%clk 0:02:46]}  Ncd7 {[%clk 0:02:40]} 11. Bd3 {[%clk 0:02:42]}  Ba6 {[%clk 0:02:40]} 12. Bc2 {[%clk 0:02:43]}  c5 {[%clk 0:02:38]} 13. Nh5 {[%clk 0:02:41]}  Bf8 {[%clk 0:02:38]} 14. Be3 {[%clk 0:02:33]}  Nc6 {[%clk 0:02:37]} 15. a3 {[%clk 0:02:31]}  Qc7 {[%clk 0:02:26]} 16. Nf4 {[%clk 0:02:27]}  Be7 {[%clk 0:02:19]} 17. Rh3 {[%clk 0:02:23]}  b5 {[%clk 0:02:13]} 18. Rg3 {[%clk 0:02:17]}  Bf8 {[%clk 0:02:13]} 19. h5 {[%clk 0:02:17]}  c4 {[%clk 0:02:00]} 20. Kf1 {[%clk 0:02:17]}  Nb6 {[%clk 0:01:55]} 21. Kg1 {[%clk 0:02:17]}  b4 {[%clk 0:01:52]} 22. axb4 {[%clk 0:02:16]}  axb4 {[%clk 0:01:52]} 23. cxb4 {[%clk 0:02:03]}  Nxb4 {[%clk 0:01:48]} 24. Bb1 {[%clk 0:02:01]}  Bb5 {[%clk 0:01:42]} 25. Rxa8+ {[%clk 0:01:52]}  Nxa8 {[%clk 0:01:43]} 26. Bd2 {[%clk 0:01:48]}  Nc6 {[%clk 0:01:37]} 27. Bc3 {[%clk 0:01:47]}  Nb6 {[%clk 0:01:37]} 28. Bc2 {[%clk 0:01:45]}  Qa7 {[%clk 0:01:36]} 29. Nd2 {[%clk 0:01:40]}  Ba4 {[%clk 0:01:21]} 30. b3 {[%clk 0:01:35]}  cxb3 {[%clk 0:01:21]} 31. Bxb3 {[%clk 0:01:33]}  Qa6 {[%clk 0:01:12]} 32. Kh2 {[%clk 0:01:30]}  Qb5 {[%clk 0:01:11]} 33. Bb2 {[%clk 0:01:22]}  Be7 {[%clk 0:01:06]} 34. Rxg7 {[%clk 0:01:19]}  Bg5 {[%clk 0:01:06]} 35. Qf3 {[%clk 0:00:34]}  Nd8 {[%clk 0:01:06]} 36. Bxa4 {[%clk 0:00:29]}  Nxa4 {[%clk 0:01:06]} 37. Ba3 {[%clk 0:00:27]}  Qb6 {[%clk 0:00:49]} 38. Nh3 {[%clk 0:00:01]}  Bxd2 {[%clk 0:00:44]} 39. Qf6 {[%clk 0:00:02]}  Bb4 {[%clk 0:00:37]} 40. Rg6 {[%clk 0:00:01]}  Rf8 {[%clk 0:00:26]} 41. Bxb4 {[%clk 0:00:02]}  Qxb4 {[%clk 0:00:26]} 42. Rxh6 {[%clk 0:00:03]}  Qxd4 {[%clk 0:00:22]} 43. Rh8 {[%clk 0:00:02]}  Nc6 {[%clk 0:00:17]} 44. Rxf8+ {[%clk 0:00:02]}  Kxf8 {[%clk 0:00:18]} 45. h6 {[%clk 0:00:03]}  Qxe5+ {[%clk 0:00:18]} 46. Qxe5 {[%clk 0:00:03]}  Nxe5 {[%clk 0:00:19]} 47. Ng5 {[%clk 0:00:03]}  Ng6 {[%clk 0:00:18]} 48. Kg3 {[%clk 0:00:03]}  Nc5 {[%clk 0:00:18]} 49. Kg4 {[%clk 0:00:04]}  Ne4 {[%clk 0:00:18]} 50. Nf3 {[%clk 0:00:03]}  Nxf2+ {[%clk 0:00:18]} 51. Kg5 {[%clk 0:00:03]}  Ne4+ {[%clk 0:00:19]} 52. Kh5 {[%clk 0:00:04]}  Nf6+ {[%clk 0:00:18]} 53. Kg5 {[%clk 0:00:04]}  Nh7+ {[%clk 0:00:19]} 54. Kg4 {[%clk 0:00:04]}  e5 {[%clk 0:00:20]} 55. Kf5 {[%clk 0:00:04]}  e4 {[%clk 0:00:20]} 56. Nd4 {[%clk 0:00:04]}  Ke7 {[%clk 0:00:17]} 57. g3 {[%clk 0:00:04]}  Kd6 {[%clk 0:00:17]} 58. Nb3 {[%clk 0:00:04]}  e3 {[%clk 0:00:17]} 59. Kg4 {[%clk 0:00:04]}  Ke5 {[%clk 0:00:15]} 60. Kf3 {[%clk 0:00:04]}  d4 {[%clk 0:00:16]} 61. Nc1 {[%clk 0:00:04]}  Kd5 {[%clk 0:00:16]} 62. Nd3 {[%clk 0:00:04]}  Ne5+ {[%clk 0:00:16]} 63. Ke2 {[%clk 0:00:03]}  Nxd3 {[%clk 0:00:16]} 64. Kxd3 {[%clk 0:00:04]}  Ng5 {[%clk 0:00:16]} 0-1


[Site "https://www.chess.com"]

[Event "Titled Tuesday Blitz January 17 Late 2023"]
[White "Di Berardino, Diego Rafael"]
[Black "Przybylski, Wojciech"]
[WhiteFideId "2105446"]
[BlackFideId "1117599"]
[WhiteElo "2479"]
[BlackElo "2321"]
[Result "1-0"]
[Round "11"]
[TimeControl "180+2"]
[Date "2023.01.17"]
[WhiteClock "0:00:07"]
[BlackClock "0:00:25"]

1. e4 {[%clk 0:02:59]}  e5 {[%clk 0:02:59]} 2. Nf3 {[%clk 0:02:59]}  Nf6 {[%clk 0:02:59]} 3. Nxe5 {[%clk 0:02:56]}  d6 {[%clk 0:02:59]} 4. Nf3 {[%clk 0:02:57]}  Nxe4 {[%clk 0:02:59]} 5. d4 {[%clk 0:02:57]}  d5 {[%clk 0:03:00]} 6. Bd3 {[%clk 0:02:58]}  Bd6 {[%clk 0:03:00]} 7. O-O {[%clk 0:02:57]}  O-O {[%clk 0:03:01]} 8. c4 {[%clk 0:02:57]}  c6 {[%clk 0:03:01]} 9. Qc2 {[%clk 0:02:56]}  Bf5 {[%clk 0:02:59]} 10. Nc3 {[%clk 0:02:49]}  Na6 {[%clk 0:02:59]} 11. a3 {[%clk 0:02:48]}  Re8 {[%clk 0:02:58]} 12. c5 {[%clk 0:02:21]}  Bb8 {[%clk 0:02:43]} 13. Re1 {[%clk 0:02:13]}  Bg4 {[%clk 0:02:43]} 14. Nxe4 {[%clk 0:01:35]}  dxe4 {[%clk 0:02:37]} 15. Rxe4 {[%clk 0:01:23]}  Bxf3 {[%clk 0:02:32]} 16. gxf3 {[%clk 0:01:20]}  Rxe4 {[%clk 0:02:17]} 17. Bxe4 {[%clk 0:01:12]}  Qh4 {[%clk 0:02:13]} 18. f4 {[%clk 0:00:45]}  Bxf4 {[%clk 0:02:06]} 19. Bxf4 {[%clk 0:00:45]}  Qxf4 {[%clk 0:02:05]} 20. Bxh7+ {[%clk 0:00:42]}  Kh8 {[%clk 0:02:05]} 21. Qf5 {[%clk 0:00:39]}  Qxd4 {[%clk 0:01:47]} 22. Qh3 {[%clk 0:00:30]}  Qd2 {[%clk 0:01:35]} 23. Be4+ {[%clk 0:00:20]}  Qh6 {[%clk 0:01:33]} 24. Qxh6+ {[%clk 0:00:17]}  gxh6 {[%clk 0:01:32]} 25. b4 {[%clk 0:00:18]}  Rd8 {[%clk 0:01:30]} 26. Re1 {[%clk 0:00:15]}  Nc7 {[%clk 0:01:20]} 27. Re3 {[%clk 0:00:15]}  Ne6 {[%clk 0:01:17]} 28. Bf5 {[%clk 0:00:14]}  Nf4 {[%clk 0:01:12]} 29. h3 {[%clk 0:00:12]}  Rd5 {[%clk 0:00:52]} 30. Bg4 {[%clk 0:00:11]}  h5 {[%clk 0:00:50]} 31. Bf3 {[%clk 0:00:12]}  Rg5+ {[%clk 0:00:44]} 32. Kh2 {[%clk 0:00:10]}  Ne6 {[%clk 0:00:44]} 33. h4 {[%clk 0:00:09]}  Rf5 {[%clk 0:00:44]} 34. Kg3 {[%clk 0:00:09]}  Kg7 {[%clk 0:00:41]} 35. Rd3 {[%clk 0:00:08]}  b6 {[%clk 0:00:36]} 36. cxb6 {[%clk 0:00:07]}  axb6 {[%clk 0:00:36]} 37. Bxc6 {[%clk 0:00:07]}  Re5 {[%clk 0:00:31]} 38. Bf3 {[%clk 0:00:07]}  f5 {[%clk 0:00:27]} 39. Rd5 {[%clk 0:00:06]}  f4+ {[%clk 0:00:24]} 40. Kg2 {[%clk 0:00:05]}  Re1 {[%clk 0:00:25]} 41. Rxh5 {[%clk 0:00:03]}  Ra1 {[%clk 0:00:24]} 42. Rb5 {[%clk 0:00:03]}  Rxa3 {[%clk 0:00:17]} 43. Rxb6 {[%clk 0:00:03]}  Nd4 {[%clk 0:00:17]} 44. Be4 {[%clk 0:00:04]}  Rb3 {[%clk 0:00:13]} 45. b5 {[%clk 0:00:03]}  Rb4 {[%clk 0:00:10]} 46. Rb7+ {[%clk 0:00:03]}  Kf6 {[%clk 0:00:10]} 47. b6 {[%clk 0:00:04]}  Ne6 {[%clk 0:00:09]} 48. Bd5 {[%clk 0:00:04]}  Nc5 {[%clk 0:00:09]} 49. Rb8 {[%clk 0:00:04]}  Nd7 {[%clk 0:00:09]} 50. Rb7 {[%clk 0:00:03]}  Nxb6 {[%clk 0:00:09]} 51. Bf3 {[%clk 0:00:03]}  Rb2 {[%clk 0:00:09]} 52. h5 {[%clk 0:00:03]}  Kg5 {[%clk 0:00:09]} 53. Rb8 {[%clk 0:00:03]}  Kf6 {[%clk 0:00:09]} 54. Rb7 {[%clk 0:00:03]}  Kg5 {[%clk 0:00:09]} 55. Rb8 {[%clk 0:00:03]}  Nc4 {[%clk 0:00:08]} 56. Rxb2 {[%clk 0:00:02]}  Nxb2 {[%clk 0:00:09]} 57. Kh3 {[%clk 0:00:02]}  Nd3 {[%clk 0:00:09]} 58. h6 {[%clk 0:00:02]}  Kxh6 {[%clk 0:00:08]} 59. Kg4 {[%clk 0:00:03]}  Kg6 {[%clk 0:00:08]} 60. Be4+ {[%clk 0:00:03]}  Kf6 {[%clk 0:00:09]} 61. Bxd3 {[%clk 0:00:04]}  Ke5 {[%clk 0:00:09]} 62. Kf3 {[%clk 0:00:05]}  Kf6 {[%clk 0:00:09]} 63. Be4 {[%clk 0:00:05]}  Ke5 {[%clk 0:00:10]} 64. Bb7 {[%clk 0:00:06]}  Ke6 {[%clk 0:00:10]} 65. Bc8+ {[%clk 0:00:06]}  Kf6 {[%clk 0:00:11]} 66. Kxf4 {[%clk 0:00:06]}  Ke7 {[%clk 0:00:11]} 67. Bf5 {[%clk 0:00:07]}  Kd8 {[%clk 0:00:12]} 68. Ke5 {[%clk 0:00:07]}  Ke7 {[%clk 0:00:13]} 69. f4 {[%clk 0:00:07]}  Kf7 {[%clk 0:00:14]} 70. Be4 {[%clk 0:00:07]}  Ke8 {[%clk 0:00:15]} 71. f5 {[%clk 0:00:08]}  Ke7 {[%clk 0:00:15]} 72. f6+ {[%clk 0:00:09]}  Kf8 {[%clk 0:00:16]} 73. Ke6 {[%clk 0:00:09]}  Ke8 {[%clk 0:00:17]} 74. f7+ {[%clk 0:00:08]}  Kf8 {[%clk 0:00:18]} 75. Bb1 {[%clk 0:00:07]}  Kg7 {[%clk 0:00:19]} 76. Ke7 {[%clk 0:00:07]}  Kh6 {[%clk 0:00:19]} 77. f8=Q+ {[%clk 0:00:08]}  Kg5 {[%clk 0:00:20]} 78. Qf6+ {[%clk 0:00:07]}  Kg4 {[%clk 0:00:21]} 79. Qf5+ {[%clk 0:00:06]}  Kh4 {[%clk 0:00:21]} 80. Qg6 {[%clk 0:00:06]}  Kh3 {[%clk 0:00:21]} 81. Ke6 {[%clk 0:00:06]}  Kh2 {[%clk 0:00:22]} 82. Kf5 {[%clk 0:00:07]}  Kh3 {[%clk 0:00:23]} 83. Kf4 {[%clk 0:00:07]}  Kh2 {[%clk 0:00:24]} 84. Kf3 {[%clk 0:00:07]}  Kh1 {[%clk 0:00:25]} 85. Qg2# {[%clk 0:00:07]} 1-0


[Site "https://www.chess.com"]